fUSD/lending_fUSD_20260614
["ID","MTS","AMOUNT","RATE_DAILY","PERIOD"]
[425063813,1781447577000,-1023.6,0.00032328,8]
[425063808,1781447577000,-4001.43,0.00032328,8]
[425063809,1781447577000,-1749.66,0.00032328,8]
[425063810,1781447577000,-1000.0,0.00032328,8]
[425063804,1781447577000,-528.7,0.00032328,8]
[425063807,1781447577000,-1109.22,0.00032328,8]
[425063814,1781447577000,-1278.35,0.00032328,8]
[425063806,1781447577000,-636.66,0.00032328,8]
[425063805,1781447577000,-540.32,0.00032328,8]
[425063803,1781447577000,-1282.28,0.00032328,8]
[425063800,1781447577000,-658.84,0.00032328,8]
[425063812,1781447577000,-1407.31,0.00032328,8]
[425063872,1781447578000,-1648.13,0.00032328,8]
[425063871,1781447578000,-955.12,0.00032328,8]
[425063869,1781447578000,-640.65,0.00032328,8]
[425063873,1781447578000,-577.21,0.00032328,8]
[425063876,1781447578000,-500.0,0.00032328,8]
[425063875,1781447578000,-444.52125048,0.00032328,8]
[425063877,1781447578000,-800.7,0.00032328,8]
[425063874,1781447578000,-861.57,0.00032328,8]
[425063880,1781447578000,-921.05,0.00032328,8]
[425063889,1781447578000,-500.0,0.00032328,8]
[425063887,1781447578000,-5871.97,0.00032328,8]
[425063888,1781447578000,-500.0,0.00032328,8]
[425063885,1781447578000,-741.37,0.00032328,8]
[425063878,1781447578000,-2104.15,0.00032328,8]
[425063882,1781447578000,-1133.48,0.00032328,8]
[425063883,1781447578000,-922.21,0.00032328,8]
[425063881,1781447578000,-500.0,0.00032328,8]
[425063879,1781447578000,-1609.77,0.00032328,8]
[425063870,1781447578000,-5289.14,0.00032328,8]
[425063864,1781447578000,-1326.3,0.00032328,8]
[425063868,1781447578000,-1599.83,0.00032328,8]
[425063884,1781447578000,-837.18,0.00032328,8]
[425063850,1781447578000,-1129.02,0.00032328,2]
[425063851,1781447578000,-1357.49,0.00032328,8]
[425063848,1781447578000,-605.58,0.00032328,8]
[425063849,1781447578000,-2020.73,0.00032328,8]
[425063852,1781447578000,-878.66,0.00032328,8]
[425063855,1781447578000,-839.66,0.00032328,8]
[425063853,1781447578000,-500.0,0.00032328,8]
[425063867,1781447578000,-707.22,0.00032328,8]
[425063856,1781447578000,-707.83,0.00032328,8]
[425063866,1781447578000,-1057.08,0.00032328,8]
[425063861,1781447578000,-1297.07,0.00032328,8]
[425063865,1781447578000,-500.0,0.00032328,8]
[425063857,1781447578000,-900.28,0.00032328,8]
[425063862,1781447578000,-649.93,0.00032328,8]
[425063860,1781447578000,-2061.13,0.00032328,8]
[425063859,1781447578000,-12728.02,0.00032328,8]
[425063863,1781447578000,-277.0642423,0.00032328,8]
[425063858,1781447578000,-822.75,0.00032328,8]
[425063854,1781447578000,-529.83,0.00032328,8]
[425063891,1781447578000,-1434.77,0.00032328,8]
[425063894,1781447578000,-1001.0,0.00032329,7]
[425063924,1781447578000,-150.0,0.00032562,2]
[425063913,1781447578000,-12618.252,0.000325,20]
[425063921,1781447578000,-250.0,0.0003255,2]
[425063919,1781447578000,-250.0,0.0003255,2]
[425063918,1781447578000,-250.0,0.0003255,2]
[425063920,1781447578000,-250.0,0.0003255,2]
[425063917,1781447578000,-250.0,0.0003255,2]
[425063916,1781447578000,-250.0,0.0003255,2]
[425063914,1781447578000,-12618.252,0.000325,20]
[425063915,1781447578000,-1242.12692744,0.00032534,2]
[425063922,1781447578000,-250.0,0.0003255,2]
[425063930,1781447578000,-2287.07,0.00032602,8]
[425063926,1781447578000,-419802.04405904,0.000326,3]
[425063929,1781447578000,-1928.24,0.00032602,8]
[425063928,1781447578000,-1334.75249203,0.00032601,8]
[425063931,1781447578000,-569.09,0.00032602,8]
[425063927,1781447578000,-241.87172142,0.000326,3]
[425063886,1781447578000,-1698.66,0.00032328,8]
[425063923,1781447578000,-250.0,0.0003255,2]
[425063912,1781447578000,-12618.252,0.000325,20]
[425063925,1781447578000,-213.73642824,0.00032597,30]
[425063908,1781447578000,-1335.86815712,0.00032492,7]
[425063890,1781447578000,-1401.83,0.00032328,8]
[425063911,1781447578000,-12618.252,0.000325,20]
[425063892,1781447578000,-862.64,0.00032328,8]
[425063893,1781447578000,-150.0,0.00032328,2]
[425063896,1781447578000,-1003.3731156,0.00032336,2]
[425063897,1781447578000,-212.29643448,0.00032344,14]
[425063895,1781447578000,-280.43,0.0003233,2]
[425063900,1781447578000,-150.0,0.00032345,2]
[425063899,1781447578000,-150.0,0.00032345,2]
[425063898,1781447578000,-214.55542187,0.00032344,14]
[425063903,1781447578000,-150.0,0.00032345,2]
[425063905,1781447578000,-150.0,0.00032345,2]
[425063904,1781447578000,-151.22488979,0.00032345,2]
[425063907,1781447578000,-1641.58152,0.000324,120]
[425063906,1781447578000,-488.02315851,0.00032359,7]
[425063902,1781447578000,-150.0,0.00032345,2]
[425063909,1781447578000,-1000.0,0.000325,2]
[425063901,1781447578000,-150.0,0.00032345,2]
[425063910,1781447578000,-1000.0,0.000325,14]
[425063971,1781447579000,-951.06,0.00032602,8]
[425063970,1781447579000,-578.78,0.00032602,8]
[425063973,1781447579000,-553.9,0.00032602,8]
[425063966,1781447579000,-1285.32,0.00032602,8]
[425063967,1781447579000,-514.54,0.00032602,8]
[425063976,1781447579000,-648.16,0.00032602,8]
[425063975,1781447579000,-1121.81,0.00032602,8]
[425063963,1781447579000,-220.21900773,0.00032602,8]
[425063974,1781447579000,-524.27,0.00032602,8]
[425063972,1781447579000,-735.2,0.00032602,8]
[425063964,1781447579000,-1224.99,0.00032602,8]
[425063965,1781447579000,-508.34,0.00032602,8]
[425063969,1781447579000,-926.37,0.00032602,8]
[425063982,1781447579000,-1274.35,0.00032602,8]
[425063977,1781447579000,-1031.86,0.00032602,8]
[425063979,1781447579000,-682.21,0.00032602,8]
[425063985,1781447579000,-204.71700976,0.00032602,8]
[425063980,1781447579000,-546.49,0.00032602,8]
[425063983,1781447579000,-688.19,0.00032602,8]
[425063978,1781447579000,-800.55,0.00032602,8]
[425063981,1781447579000,-1400.43,0.00032602,8]
[425063986,1781447579000,-608.15,0.00032602,8]
[425063987,1781447579000,-1189.57,0.00032602,8]
[425063984,1781447579000,-500.0,0.00032602,8]
[425063999,1781447579000,-1047.49,0.00032602,8]
[425063988,1781447579000,-1222.28,0.00032602,8]
[425063956,1781447579000,-1007.63,0.00032602,8]
[425063968,1781447579000,-500.0,0.00032602,8]
[425063955,1781447579000,-985.3,0.00032602,8]
[425063941,1781447579000,-558.29,0.00032602,8]
[425063962,1781447579000,-500.0,0.00032602,8]
[425063936,1781447579000,-510.86,0.00032602,8]
[425063935,1781447579000,-158.05819566,0.00032602,8]
[425063933,1781447579000,-706.5,0.00032602,8]
[425063932,1781447579000,-1290.4,0.00032602,8]
[425063937,1781447579000,-500.0,0.00032602,8]
[425063934,1781447579000,-957.59,0.00032602,8]
[425063938,1781447579000,-1013.37,0.00032602,8]
[425063940,1781447579000,-630.1,0.00032602,8]
[425063945,1781447579000,-552.72,0.00032602,8]
[425063949,1781447579000,-685.22,0.00032602,8]
[425063944,1781447579000,-500.0,0.00032602,8]
[425063939,1781447579000,-512.97,0.00032602,8]
[425063946,1781447579000,-1280.28,0.00032602,8]
[425063942,1781447579000,-925.25,0.00032602,8]
[425063948,1781447579000,-500.0,0.00032602,8]
[425063943,1781447579000,-1526.43,0.00032602,8]
[425063947,1781447579000,-542.62,0.00032602,8]
[425063950,1781447579000,-614.99,0.00032602,8]
[425063952,1781447579000,-801.17,0.00032602,8]
[425063953,1781447579000,-1300.69,0.00032602,8]
[425063954,1781447579000,-1200.69,0.00032602,8]
[425063951,1781447579000,-736.33,0.00032602,8]
[425063961,1781447579000,-700.76,0.00032602,8]
[425063958,1781447579000,-738.99,0.00032602,8]
[425063989,1781447579000,-1452.09,0.00032602,8]
[425063957,1781447579000,-1573.21,0.00032602,8]
[425063959,1781447579000,-1067.78,0.00032602,8]
[425063960,1781447579000,-500.0,0.00032602,8]
[425063990,1781447579000,-1053.08,0.00032602,8]
[425064028,1781447579000,-815.68,0.00032602,8]
[425063991,1781447579000,-672.85,0.00032602,8]
[425064036,1781447579000,-500.0,0.00032602,8]
[425064029,1781447579000,-556.37,0.00032602,8]
[425064027,1781447579000,-2153.84,0.00032602,8]
[425064037,1781447579000,-500.0,0.00032602,8]
[425064033,1781447579000,-520.69,0.00032602,8]
[425064030,1781447579000,-534.02,0.00032602,8]
[425064025,1781447579000,-544.6,0.00032602,8]
[425064034,1781447579000,-648.3,0.00032602,8]
[425064035,1781447579000,-500.0,0.00032602,8]
[425064031,1781447579000,-790.09,0.00032602,8]
[425064032,1781447579000,-500.0,0.00032602,8]
[425064038,1781447579000,-1022.53,0.00032602,8]
[425064047,1781447579000,-1746.88,0.00032602,8]
[425064048,1781447579000,-723.54,0.00032602,8]
[425064039,1781447579000,-543.72,0.00032602,8]
[425064049,1781447579000,-784.28,0.00032602,8]
[425064040,1781447579000,-597.42,0.00032602,8]
[425064041,1781447579000,-1193.0,0.00032602,8]
[425064044,1781447579000,-1254.7,0.00032602,8]
[425064043,1781447579000,-410.8977966,0.00032602,8]
[425064042,1781447579000,-573.76,0.00032602,8]
[425064045,1781447579000,-500.0,0.00032602,8]
[425064050,1781447579000,-872.27,0.00032602,8]
[425064053,1781447579000,-639.31,0.00032602,8]
[425064051,1781447579000,-500.0,0.00032602,8]
[425064052,1781447579000,-559.91,0.00032602,8]
[425063994,1781447579000,-532.02,0.00032602,8]
[425064026,1781447579000,-866.85,0.00032602,8]
[425064013,1781447579000,-520.02,0.00032602,8]
[425064046,1781447579000,-689.06,0.00032602,8]
[425064020,1781447579000,-638.31,0.00032602,8]
[425064022,1781447579000,-806.88,0.00032602,8]
[425063997,1781447579000,-1015.25,0.00032602,8]
[425063992,1781447579000,-500.0,0.00032602,8]
[425063993,1781447579000,-1281.05,0.00032602,8]
[425063998,1781447579000,-664.01,0.00032602,8]
[425063995,1781447579000,-500.0,0.00032602,8]
[425064000,1781447579000,-246.69091184,0.00032602,8]
[425064002,1781447579000,-773.85,0.00032602,8]
[425064003,1781447579000,-1207.41,0.00032602,8]
[425064001,1781447579000,-1037.86,0.00032602,8]
[425064004,1781447579000,-766.55,0.00032602,8]
[425064005,1781447579000,-508.13,0.00032602,8]
[425064011,1781447579000,-1425.15,0.00032602,8]
[425064012,1781447579000,-1195.63,0.00032602,8]
[425063996,1781447579000,-1604.32,0.00032602,8]
[425064008,1781447579000,-899.88,0.00032602,8]
[425064009,1781447579000,-150.17693981,0.00032602,8]
[425064021,1781447579000,-510.28,0.00032602,8]
[425064018,1781447579000,-1132.03,0.00032602,8]
[425064017,1781447579000,-554.77,0.00032602,8]
[425064024,1781447579000,-853.99,0.00032602,8]
[425064023,1781447579000,-500.0,0.00032602,8]
[425064015,1781447579000,-841.95,0.00032602,8]
[425064006,1781447579000,-586.53,0.00032602,8]
[425064016,1781447579000,-500.0,0.00032602,8]
[425064007,1781447579000,-1099.99,0.00032602,8]
[425064019,1781447579000,-607.25,0.00032602,8]
[425064014,1781447579000,-1398.15,0.00032602,8]
[425064010,1781447579000,-671.88,0.00032602,8]
[425064091,1781447580000,-500.0,0.00032602,8]
[425064085,1781447580000,-1794.38,0.00032602,8]
[425064086,1781447580000,-752.56,0.00032602,8]
[425064089,1781447580000,-712.15,0.00032602,8]
[425064084,1781447580000,-1086.15,0.00032602,8]
[425064079,1781447580000,-770.14,0.00032602,8]
[425064083,1781447580000,-500.0,0.00032602,8]
[425064090,1781447580000,-658.12,0.00032602,8]
[425064092,1781447580000,-710.6,0.00032602,8]
[425064093,1781447580000,-556.38,0.00032602,8]
[425064087,1781447580000,-1362.07,0.00032602,8]
[425064098,1781447580000,-578.24,0.00032602,8]
[425064105,1781447580000,-1016.47,0.00032602,8]
[425064096,1781447580000,-836.13,0.00032602,8]
[425064095,1781447580000,-1530.48,0.00032602,8]
[425064099,1781447580000,-987.41,0.00032602,8]
[425064094,1781447580000,-932.78,0.00032602,8]
[425064097,1781447580000,-1329.36,0.00032602,8]
[425064102,1781447580000,-1199.11,0.00032602,8]
[425064103,1781447580000,-579.71,0.00032602,8]
[425064076,1781447580000,-681.48,0.00032602,8]
[425064104,1781447580000,-500.0,0.00032602,8]
[425064088,1781447580000,-1214.87,0.00032602,8]
[425064081,1781447580000,-1236.08,0.00032602,8]
[425064061,1781447580000,-714.38,0.00032602,8]
[425064075,1781447580000,-638.67,0.00032602,8]
[425064101,1781447580000,-500.0,0.00032602,8]
[425064058,1781447580000,-1046.11,0.00032602,8]
[425064059,1781447580000,-892.45,0.00032602,8]
[425064055,1781447580000,-504.6,0.00032602,8]
[425064060,1781447580000,-566.53,0.00032602,8]
[425064057,1781447580000,-715.69,0.00032602,8]
[425064054,1781447580000,-623.88,0.00032602,8]
[425064056,1781447580000,-533.2,0.00032602,8]
[425064062,1781447580000,-500.0,0.00032602,8]
[425064071,1781447580000,-694.6,0.00032602,8]
[425064072,1781447580000,-500.0,0.00032602,8]
[425064064,1781447580000,-1199.94,0.00032602,8]
[425064063,1781447580000,-529.52,0.00032602,8]
[425064065,1781447580000,-536.09,0.00032602,8]
[425064069,1781447580000,-1992.83,0.00032602,8]
[425064067,1781447580000,-500.0,0.00032602,8]
[425064068,1781447580000,-1220.66,0.00032602,8]
[425064070,1781447580000,-1285.7,0.00032602,8]
[425064066,1781447580000,-611.86,0.00032602,8]
[425064073,1781447580000,-577.76,0.00032602,8]
[425064080,1781447580000,-606.2,0.00032602,8]
[425064074,1781447580000,-694.97,0.00032602,8]
[425064077,1781447580000,-1019.53,0.00032602,8]
[425064078,1781447580000,-500.0,0.00032602,8]
[425064100,1781447580000,-747.07,0.00032602,8]
[425064082,1781447580000,-648.66,0.00032602,8]
[425064109,1781447580000,-597.59,0.00032602,8]
[425064142,1781447580000,-869.12,0.00032602,8]
[425064137,1781447580000,-616.02,0.00032602,8]
[425064140,1781447580000,-3014.18,0.00032602,8]
[425064139,1781447580000,-500.0,0.00032602,8]
[425064135,1781447580000,-500.0,0.00032602,8]
[425064138,1781447580000,-500.0,0.00032602,8]
[425064131,1781447580000,-564.84,0.00032602,8]
[425064141,1781447580000,-500.0,0.00032602,8]
[425064144,1781447580000,-1461.98,0.00032602,8]
[425064143,1781447580000,-992.68,0.00032602,8]
[425064146,1781447580000,-500.0,0.00032602,8]
[425064147,1781447580000,-1539.52,0.00032602,8]
[425064145,1781447580000,-3250.13,0.00032602,8]
[425064148,1781447580000,-870.51,0.00032602,8]
[425064150,1781447580000,-500.0,0.00032602,8]
[425064149,1781447580000,-217.93607169,0.00032602,8]
[425064151,1781447580000,-692.78,0.00032602,8]
[425064152,1781447580000,-540.29,0.00032602,8]
[425064154,1781447580000,-743.01,0.00032602,8]
[425064157,1781447580000,-509.71,0.00032602,8]
[425064156,1781447580000,-920.43,0.00032602,8]
[425064155,1781447580000,-553.44,0.00032602,8]
[425064106,1781447580000,-1038.13,0.00032602,8]
[425064136,1781447580000,-880.78,0.00032602,8]
[425064132,1781447580000,-648.15,0.00032602,8]
[425064153,1781447580000,-1661.43,0.00032602,8]
[425064134,1781447580000,-2000.0,0.00032602,2]
[425064110,1781447580000,-565.44,0.00032602,8]
[425064133,1781447580000,-835.21,0.00032602,8]
[425064116,1781447580000,-944.34,0.00032602,8]
[425064115,1781447580000,-663.09,0.00032602,8]
[425064111,1781447580000,-1068.73,0.00032602,8]
[425064107,1781447580000,-519.48,0.00032602,8]
[425064112,1781447580000,-180.67854978,0.00032602,8]
[425064108,1781447580000,-856.87,0.00032602,8]
[425064114,1781447580000,-1514.46,0.00032602,8]
[425064118,1781447580000,-1042.52,0.00032602,8]
[425064121,1781447580000,-702.19,0.00032602,8]
[425064127,1781447580000,-500.0,0.00032602,8]
[425064113,1781447580000,-657.3,0.00032602,8]
[425064117,1781447580000,-675.87,0.00032602,8]
[425064124,1781447580000,-500.0,0.00032602,8]
[425064128,1781447580000,-1150.58,0.00032602,8]
[425064122,1781447580000,-845.18,0.00032602,8]
[425064158,1781447580000,-662.85,0.00032602,8]
[425064130,1781447580000,-657.48,0.00032602,8]
[425064120,1781447580000,-642.31,0.00032602,8]
[425064129,1781447580000,-532.23,0.00032602,8]
[425064125,1781447580000,-729.66,0.00032602,8]
[425064119,1781447580000,-881.04,0.00032602,8]
[425064123,1781447580000,-631.21,0.00032602,8]
[425064126,1781447580000,-815.38,0.00032602,8]
[425064178,1781447581000,-2017.64,0.00032602,8]
[425064180,1781447581000,-1157.66,0.00032602,8]
[425064179,1781447581000,-550.82,0.00032602,8]
[425064176,1781447581000,-580.54,0.00032602,8]
[425064181,1781447581000,-500.0,0.00032602,8]
[425064183,1781447581000,-842.22,0.00032602,8]
[425064187,1781447581000,-1427.79,0.00032602,8]
[425064185,1781447581000,-703.84,0.00032602,8]
[425064184,1781447581000,-1675.9,0.00032602,8]
[425064186,1781447581000,-500.0,0.00032602,8]
[425064177,1781447581000,-623.6,0.00032602,8]
[425064189,1781447581000,-500.0,0.00032602,8]
[425064182,1781447581000,-543.63,0.00032602,8]
[425064174,1781447581000,-966.37,0.00032602,8]
[425064162,1781447581000,-2667.75,0.00032602,8]
[425064175,1781447581000,-2663.08,0.00032602,8]
[425064191,1781447581000,-877.23,0.00032602,8]
[425064160,1781447581000,-299.8906696,0.00032602,8]
[425064159,1781447581000,-605.61,0.00032602,8]
[425064161,1781447581000,-698.01,0.00032602,8]
[425064163,1781447581000,-674.5,0.00032602,8]
[425064164,1781447581000,-1701.25,0.00032602,8]
[425064171,1781447581000,-502.0,0.00032602,8]
[425064167,1781447581000,-558.94,0.00032602,8]
[425064166,1781447581000,-1169.04,0.00032602,8]
[425064168,1781447581000,-605.88,0.00032602,8]
[425064170,1781447581000,-702.01,0.00032602,8]
[425064169,1781447581000,-720.7,0.00032602,8]
[425064172,1781447581000,-2238.28,0.00032602,8]
[425064173,1781447581000,-682.04,0.00032602,8]
[425064165,1781447581000,-592.38,0.00032602,8]
[425064194,1781447581000,-940.15,0.00032602,8]
[425064199,1781447581000,-825.79,0.00032602,8]
[425064188,1781447581000,-5751.63,0.00032602,8]
[425064192,1781447581000,-546.64,0.00032602,8]
[425064223,1781447581000,-1109.22,0.00032602,8]
[425064224,1781447581000,-4001.43,0.00032602,8]
[425064222,1781447581000,-636.66,0.00032602,8]
[425064220,1781447581000,-528.7,0.00032602,8]
[425064219,1781447581000,-1282.28,0.00032602,8]
[425064221,1781447581000,-540.32,0.00032602,8]
[425064218,1781447581000,-610.83,0.00032602,8]
[425064217,1781447581000,-1682.54,0.00032602,8]
[425064215,1781447581000,-518.74,0.00032602,8]
[425064214,1781447581000,-3706.06,0.00032602,8]
[425064212,1781447581000,-742.57,0.00032602,8]
[425064213,1781447581000,-528.8,0.00032602,8]
[425064209,1781447581000,-492.6796511,0.00032602,8]
[425064211,1781447581000,-500.0,0.00032602,8]
[425064216,1781447581000,-658.84,0.00032602,8]
[425064208,1781447581000,-500.0,0.00032602,8]
[425064190,1781447581000,-368.94512838,0.00032602,8]
[425064210,1781447581000,-2931.64,0.00032602,8]
[425064193,1781447581000,-1056.35,0.00032602,8]
[425064196,1781447581000,-1143.85,0.00032602,8]
[425064195,1781447581000,-10759.52,0.00032602,8]
[425064198,1781447581000,-1116.26,0.00032602,8]
[425064201,1781447581000,-626.04,0.00032602,8]
[425064197,1781447581000,-679.83,0.00032602,8]
[425064203,1781447581000,-1082.98,0.00032602,8]
[425064202,1781447581000,-704.65,0.00032602,8]
[425064205,1781447581000,-702.05,0.00032602,8]
[425064206,1781447581000,-4182.59,0.00032602,8]
[425064207,1781447581000,-3026.85,0.00032602,8]
[425064204,1781447581000,-182.23801876,0.00032602,8]
[425064200,1781447581000,-500.0,0.00032602,8]
[425064246,1781447582000,-1343.56,0.00032602,8]
[425064252,1781447582000,-1413.1,0.00032602,8]
[425064249,1781447582000,-595.31,0.00032602,8]
[425064245,1781447582000,-1828.15,0.00032602,8]
[425064247,1781447582000,-1463.18,0.00032602,8]
[425064250,1781447582000,-1866.64,0.00032602,8]
[425064251,1781447582000,-577.98,0.00032602,8]
[425064258,1781447582000,-3655.13,0.00032602,8]
[425064256,1781447582000,-1090.91,0.00032602,8]
[425064253,1781447582000,-500.0,0.00032602,8]
[425064254,1781447582000,-5973.16,0.00032602,8]
[425064257,1781447582000,-500.0,0.00032602,8]
[425064259,1781447582000,-3216.2,0.00032602,8]
[425064260,1781447582000,-2562.95,0.00032602,8]
[425064248,1781447582000,-1214.13,0.00032602,8]
[425064255,1781447582000,-763.45,0.00032602,8]
[425064244,1781447582000,-1801.16,0.00032602,8]
[425064225,1781447582000,-1749.66,0.00032602,8]
[425064243,1781447582000,-2890.54,0.00032602,8]
[425064227,1781447582000,-1407.31,0.00032602,8]
[425064228,1781447582000,-508.2,0.00032602,8]
[425064229,1781447582000,-1023.6,0.00032602,8]
[425064226,1781447582000,-1000.0,0.00032602,8]
[425064230,1781447582000,-1278.35,0.00032602,8]
[425064264,1781447582000,-605.58,0.00032602,8]
[425064233,1781447582000,-11664.09,0.00032602,8]
[425064241,1781447582000,-1296.71,0.00032602,8]
[425064235,1781447582000,-25282.9,0.00032602,8]
[425064236,1781447582000,-677.78,0.00032602,8]
[425064234,1781447582000,-500.0,0.00032602,8]
[425064238,1781447582000,-500.0,0.00032602,8]
[425064237,1781447582000,-505.16,0.00032602,8]
[425064239,1781447582000,-2026.58,0.00032602,8]
[425064240,1781447582000,-589.03,0.00032602,8]
[425064242,1781447582000,-557.28,0.00032602,8]
[425064231,1781447582000,-500.0,0.00032602,8]
[425064263,1781447582000,-1108.18,0.00032602,8]
[425064232,1781447582000,-563.46,0.00032602,8]
[425064265,1781447582000,-2020.73,0.00032602,8]
[425064287,1781447582000,-1648.13,0.00032602,8]
[425064285,1781447582000,-640.65,0.00032602,8]
[425064288,1781447582000,-577.21,0.00032602,8]
[425064286,1781447582000,-955.12,0.00032602,8]
[425064289,1781447582000,-861.57,0.00032602,8]
[425064291,1781447582000,-800.7,0.00032602,8]
[425064296,1781447582000,-1133.48,0.00032602,8]
[425064284,1781447582000,-5289.14,0.00032602,8]
[425064290,1781447582000,-500.0,0.00032602,8]
[425064295,1781447582000,-414.38147912,0.00032602,8]
[425064297,1781447582000,-922.21,0.00032602,8]
[425064293,1781447582000,-1609.77,0.00032602,8]
[425064294,1781447582000,-921.05,0.00032602,8]
[425064300,1781447582000,-1698.66,0.00032602,8]
[425064299,1781447582000,-741.37,0.00032602,8]
[425064262,1781447582000,-500.0,0.00032602,8]
[425064298,1781447582000,-837.18,0.00032602,8]
[425064282,1781447582000,-707.22,0.00032602,8]
[425064292,1781447582000,-2104.15,0.00032602,8]
[425064278,1781447582000,-649.93,0.00032602,8]
[425064283,1781447582000,-1599.83,0.00032602,8]
[425064261,1781447582000,-1440.23,0.00032602,8]
[425064267,1781447582000,-1357.49,0.00032602,8]
[425064266,1781447582000,-1129.02,0.00032602,2]
[425064268,1781447582000,-878.66,0.00032602,8]
[425064269,1781447582000,-500.0,0.00032602,8]
[425064271,1781447582000,-839.66,0.00032602,8]
[425064273,1781447582000,-900.28,0.00032602,8]
[425064270,1781447582000,-529.83,0.00032602,8]
[425064274,1781447582000,-822.75,0.00032602,8]
[425064275,1781447582000,-12728.02,0.00032602,8]
[425064276,1781447582000,-2061.13,0.00032602,8]
[425064281,1781447582000,-1057.08,0.00032602,8]
[425064279,1781447582000,-1326.3,0.00032602,8]
[425064277,1781447582000,-1297.07,0.00032602,8]
[425064272,1781447582000,-707.83,0.00032602,8]
[425064280,1781447582000,-500.0,0.00032602,8]
[425064338,1781447583000,-1573.21,0.00032876,8]
[425064342,1781447583000,-700.76,0.00032876,8]
[425064335,1781447583000,-1200.69,0.00032876,8]
[425064337,1781447583000,-1007.63,0.00032876,8]
[425064334,1781447583000,-1300.69,0.00032876,8]
[425064341,1781447583000,-500.0,0.00032876,8]
[425064333,1781447583000,-801.17,0.00032876,8]
[425064325,1781447583000,-576.34142962,0.00032876,8]
[425064336,1781447583000,-985.3,0.00032876,8]
[425064324,1781447583000,-1526.43,0.00032876,8]
[425064343,1781447583000,-500.0,0.00032876,8]
[425064340,1781447583000,-1067.78,0.00032876,8]
[425064353,1781447583000,-553.9,0.00032876,8]
[425064344,1781447583000,-1224.99,0.00032876,8]
[425064348,1781447583000,-500.0,0.00032876,8]
[425064350,1781447583000,-578.78,0.00032876,8]
[425064347,1781447583000,-514.54,0.00032876,8]
[425064349,1781447583000,-926.37,0.00032876,8]
[425064356,1781447583000,-1031.86,0.00032876,8]
[425064351,1781447583000,-951.06,0.00032876,8]
[425064345,1781447583000,-508.34,0.00032876,8]
[425064352,1781447583000,-735.2,0.00032876,8]
[425064354,1781447583000,-524.27,0.00032876,8]
[425064355,1781447583000,-1121.81,0.00032876,8]
[425064329,1781447583000,-500.0,0.00032876,8]
[425064339,1781447583000,-738.99,0.00032876,8]
[425064326,1781447583000,-1280.28,0.00032876,8]
[425064310,1781447583000,-1334.75249203,0.00032875,8]
[425064331,1781447583000,-614.99,0.00032876,8]
[425064302,1781447583000,-500.0,0.00032602,8]
[425064306,1781447583000,-155.719668,0.00032603,120]
[425064307,1781447583000,-503.24,0.00032703,30]
[425064301,1781447583000,-5871.97,0.00032602,8]
[425064305,1781447583000,-1434.77,0.00032602,8]
[425064303,1781447583000,-500.0,0.00032602,8]